fUST/lending_fUST_20260625
["ID","MTS","AMOUNT","RATE_DAILY","PERIOD"]
[426332564,1782319832000,-1907.93870043,0.00038797,15]
[426332569,1782319832000,-1907.93870043,0.00038797,15]
[426332560,1782319832000,-1907.93870043,0.00038797,15]
[426332554,1782319832000,-1780.13756905,0.00038797,15]
[426332862,1782319838000,-322.37238129,0.00038723,2]
[426332864,1782319838000,-1907.93870043,0.00038797,15]
[426332860,1782319838000,-203.37,0.00037572,30]
[426332869,1782319838000,-1907.93870043,0.00038797,15]
[426332867,1782319838000,-1907.93870043,0.00038797,15]
[426332871,1782319838000,-1907.93870043,0.00038797,15]
[426332877,1782319838000,-1907.93870043,0.00038797,15]
[426332884,1782319838000,-13909.7186938,0.00038799,2]
[426332875,1782319838000,-1907.93870043,0.00038797,15]
[426332879,1782319838000,-104.30309362,0.00038798,2]
[426332873,1782319838000,-1907.93870043,0.00038797,15]
[426332898,1782319838000,-117046.03263345,0.00038799,2]
[426332894,1782319838000,-144963.85936758,0.00038799,2]
[426332896,1782319838000,-35874.3921675,0.00038799,2]
[426332883,1782319838000,-205.37733386,0.00038798,2]
[426332889,1782319838000,-915559.76150858,0.00038799,2]
[426332887,1782319838000,-107846.22663355,0.00038799,2]
[426332881,1782319838000,-500.0,0.00038798,2]
[426332891,1782319838000,-136802.31738837,0.00038799,2]
[426333109,1782319840000,-862.25268998,0.00038799,2]
[426333301,1782319843000,-0.00317298,0.00025,2]
[426333302,1782319844000,-160.05163705,0.00025,2]
[426333303,1782319844000,-1596.41517327,0.00038799,2]
[426333320,1782319846000,-7426.99999999,0.00038799,2]
[426333321,1782319846000,-5299.86405713,0.00038799,2]
[426333319,1782319846000,-1778.651535,0.00038799,2]
[426333330,1782320103000,694.03,0.00026,120]
[426333335,1782320233000,-430.81304102,0.00010618,2]
[426333336,1782320233000,-322.48143924,0.00015,2]
[426333338,1782320251000,3539.49550778,7.6e-05,2]
[426333337,1782320251000,5643.41008439,7.6e-05,2]
[426333339,1782320252000,-1000.0,0.0001,2]
[426333343,1782320259000,-490.88879384,0.00012,2]
[426333355,1782320586000,-500.0,0.0001188,2]
[426333357,1782320586000,-500.0,0.0001188,2]
[426333356,1782320586000,-500.0,0.0001188,2]
[426333354,1782320586000,-500.0,0.0001188,2]
[426333358,1782320586000,-500.0,0.0001188,2]
[426333359,1782320586000,-798.95725772,0.00012,2]
[426333361,1782320586000,-2161.30594365,0.00014,2]
[426333360,1782320586000,-539.73679863,0.00012,2]
[426333362,1782320600000,-804.63180249,0.00011761,2]
[426333367,1782320650000,-235.39412308,0.00014604,2]
[426333366,1782320650000,-958.69405635,0.00014,2]
[426333365,1782320650000,-156.0,0.000139,2]
[426333364,1782320650000,-1490.88765857,0.0001386,2]
[426333363,1782320650000,-159.024162,0.000108,2]
[426333368,1782320677000,-579.30706134,0.00014458,2]
[426333372,1782320709000,-9000000.0,0.00139919,30]
[426333376,1782320713000,-9000000.0,0.00139919,30]
[426333377,1782320741000,-306.24,0.00014458,2]
[426333380,1782320741000,-90.11132903,0.00015,2]
[426333378,1782320741000,-263.8585,0.00014458,2]
[426333381,1782320741000,-192.40175342,0.00016,2]
[426333382,1782320741000,-90.19080622,0.00016041,2]
[426333379,1782320741000,-20.75525679,0.00014604,2]
[426333385,1782320771000,-9000000.0,0.00139919,30]
[426333395,1782320774000,-71961.91700322,0.00139919,30]
[426333393,1782320774000,-1416415.61321066,0.00139919,30]
[426333394,1782320774000,-759357.80343176,0.00139919,30]
[426333391,1782320774000,-55448.35104088,0.00139919,30]
[426333392,1782320774000,-11568.11735944,0.00139919,30]
[426333390,1782320774000,-84835.08107419,0.00139919,30]
[426333389,1782320774000,-6703.40516968,0.00139919,30]
[426333388,1782320774000,-5622.62304778,0.00139919,30]
[426333386,1782320774000,-3428280.61005983,0.00139919,30]
[426333387,1782320774000,-7876.32279805,0.00139919,30]
[426333396,1782320775000,-3151930.15580451,0.00139919,30]
[426333398,1782320803000,-10064.81983579,0.00139919,30]
[426333397,1782320803000,-789084.62559539,0.00139919,30]
[426333399,1782320803000,-7104.68903297,0.00139919,30]
[426333400,1782320803000,-19806.01024049,0.00139919,30]
[426333401,1782320803000,-155.0,0.00139919,120]
[426333403,1782320803000,-190.82513399,0.00139919,120]
[426333402,1782320803000,-1417.18,0.00139919,120]
[426333404,1782320803000,-457.95184412,0.00139919,120]
[426333407,1782320803000,-457.95184412,0.00139919,120]
[426333406,1782320803000,-190.82513399,0.00139919,120]
[426333408,1782320803000,-457.95184412,0.00139919,120]
[426333409,1782320803000,-457.95184412,0.00139919,120]
[426333405,1782320803000,-457.95184412,0.00139919,120]
[426333410,1782320803000,-457.95184412,0.00139919,120]
[426333411,1782320803000,-457.95184412,0.00139919,120]
[426333419,1782320803000,-457.95184412,0.00139919,120]
[426333420,1782320803000,-457.95184412,0.00139919,120]
[426333418,1782320803000,-457.95184412,0.00139919,120]
[426333415,1782320803000,-457.95184412,0.00139919,120]
[426333421,1782320803000,-457.95184412,0.00139919,120]
[426333417,1782320803000,-457.95184412,0.00139919,120]
[426333422,1782320803000,-457.95184412,0.00139919,120]
[426333414,1782320803000,-457.95184412,0.00139919,120]
[426333413,1782320803000,-457.95184412,0.00139919,120]
[426333412,1782320803000,-457.95184412,0.00139919,120]
[426333416,1782320803000,-457.95184412,0.00139919,120]
[426333432,1782320804000,-457.95184412,0.00139919,120]
[426333443,1782320804000,-163.86641392,0.00139919,120]
[426333438,1782320804000,-1067.57610245,0.00139919,120]
[426333439,1782320804000,-163.86641392,0.00139919,120]
[426333440,1782320804000,-1067.57610245,0.00139919,120]
[426333435,1782320804000,-3000.0,0.00139919,120]
[426333436,1782320804000,-303.8,0.00139919,120]
[426333434,1782320804000,-457.95184412,0.00139919,120]
[426333433,1782320804000,-457.95184412,0.00139919,120]
[426333425,1782320804000,-457.95184412,0.00139919,120]
[426333430,1782320804000,-457.95184412,0.00139919,120]
[426333428,1782320804000,-457.95184412,0.00139919,120]
[426333429,1782320804000,-457.95184412,0.00139919,120]
[426333426,1782320804000,-457.95184412,0.00139919,120]
[426333441,1782320804000,-163.86641392,0.00139919,120]
[426333427,1782320804000,-457.95184412,0.00139919,120]
[426333423,1782320804000,-457.95184412,0.00139919,120]
[426333424,1782320804000,-457.95184412,0.00139919,120]
[426333431,1782320804000,-457.95184412,0.00139919,120]
[426333442,1782320804000,-1067.57610245,0.00139919,120]
[426333437,1782320804000,-163.86641392,0.00139919,120]
[426333446,1782320804000,-1067.57610245,0.00139919,120]
[426333465,1782320804000,-1067.57610245,0.00139919,120]
[426333444,1782320804000,-1067.57610245,0.00139919,120]
[426333463,1782320804000,-1067.57610245,0.00139919,120]
[426333464,1782320804000,-1067.57610245,0.00139919,120]
[426333461,1782320804000,-1067.57610245,0.00139919,120]
[426333462,1782320804000,-1067.57610245,0.00139919,120]
[426333459,1782320804000,-1067.57610245,0.00139919,120]
[426333458,1782320804000,-1067.57610245,0.00139919,120]
[426333454,1782320804000,-1067.57610245,0.00139919,120]
[426333456,1782320804000,-1067.57610245,0.00139919,120]
[426333460,1782320804000,-1067.57610245,0.00139919,120]
[426333457,1782320804000,-1067.57610245,0.00139919,120]
[426333445,1782320804000,-163.86641392,0.00139919,120]
[426333455,1782320804000,-1067.57610245,0.00139919,120]
[426333448,1782320804000,-1067.57610245,0.00139919,120]
[426333449,1782320804000,-163.86641392,0.00139919,120]
[426333447,1782320804000,-163.86641392,0.00139919,120]
[426333450,1782320804000,-1067.57610245,0.00139919,120]
[426333451,1782320804000,-1067.57610245,0.00139919,120]
[426333453,1782320804000,-1067.57610245,0.00139919,120]
[426333452,1782320804000,-1067.57610245,0.00139919,120]
[426333484,1782320805000,-1473.29384117,0.00139919,120]
[426333476,1782320805000,-1118.75696777,0.00139919,120]
[426333483,1782320805000,-1193.90488227,0.00139919,120]
[426333481,1782320805000,-199.51361099,0.00139919,30]
[426333482,1782320805000,-1423.9233186,0.00139919,120]
[426333479,1782320805000,-988.71494098,0.00139919,120]
[426333478,1782320805000,-183.61236163,0.00139919,120]
[426333480,1782320805000,-746.36717617,0.00139919,120]
[426333477,1782320805000,-296.1141613,0.00139919,120]
[426333467,1782320805000,-1067.57610245,0.00139919,120]
[426333474,1782320805000,-163.8664139,0.00139919,120]
[426333472,1782320805000,-1067.57610245,0.00139919,120]
[426333473,1782320805000,-1067.57610245,0.00139919,120]
[426333471,1782320805000,-1067.57610245,0.00139919,120]
[426333470,1782320805000,-1067.57610245,0.00139919,120]
[426333468,1782320805000,-1067.57610245,0.00139919,120]
[426333469,1782320805000,-1067.57610245,0.00139919,120]
[426333466,1782320805000,-1067.57610245,0.00139919,120]
[426333485,1782320805000,-1088.04349954,0.00139919,120]
[426333475,1782320805000,-200.0,0.00139919,120]
[426333486,1782320805000,-1554.63052032,0.00139919,120]
[426333503,1782320805000,-1008.91306959,0.00139919,120]
[426333491,1782320805000,-340.82370671,0.00139919,120]
[426333487,1782320805000,-1636.61830043,0.00139919,120]
[426333506,1782320805000,-364.44507195,0.00139919,120]
[426333507,1782320805000,-2000.0,0.00139919,120]
[426333508,1782320805000,-312.96403592,0.00139919,120]
[426333505,1782320805000,-1135.97413196,0.00139919,120]
[426333502,1782320805000,-200.0,0.00139919,120]
[426333501,1782320805000,-1245.23879174,0.00139919,120]
[426333500,1782320805000,-168.28724954,0.00139919,120]
[426333499,1782320805000,-205.77319102,0.00139919,120]
[426333504,1782320805000,-164.14807797,0.00139919,120]
[426333498,1782320805000,-525.14850566,0.00139919,120]
[426333497,1782320805000,-183.54411524,0.00139919,120]
[426333492,1782320805000,-633.77546471,0.00139919,120]
[426333489,1782320805000,-563.71321154,0.00139919,120]
[426333490,1782320805000,-90670.28265367,0.00139919,120]
[426333488,1782320805000,-232.29275372,0.00139919,120]
[426333495,1782320805000,-1898.17044254,0.00139919,120]
[426333496,1782320805000,-370.47196801,0.00139919,120]
[426333494,1782320805000,-380.84011682,0.00139919,120]
[426333493,1782320805000,-973.55077937,0.00139919,120]
[426333522,1782320806000,-256.25,0.00139919,120]
[426333529,1782320806000,-151.0,0.00139919,30]
[426333525,1782320806000,-151.0,0.00139919,30]
[426333526,1782320806000,-151.0,0.00139919,30]
[426333524,1782320806000,-151.0,0.00139919,30]
[426333523,1782320806000,-151.0,0.00139919,30]
[426333520,1782320806000,-151.0,0.00139919,30]
[426333521,1782320806000,-151.0,0.00139919,30]
[426333519,1782320806000,-151.0,0.00139919,30]
[426333509,1782320806000,-3839.0709348,0.00139919,120]
[426333516,1782320806000,-151.0,0.00139919,30]
[426333515,1782320806000,-151.0,0.00139919,30]
[426333528,1782320806000,-151.0,0.00139919,30]
[426333518,1782320806000,-151.0,0.00139919,30]
[426333514,1782320806000,-151.0,0.00139919,30]
[426333513,1782320806000,-31858.92519771,0.00139919,30]
[426333512,1782320806000,-222.75403136,0.00139919,120]
[426333511,1782320806000,-222.75403137,0.00139919,120]
[426333510,1782320806000,-400000.0,0.00139919,30]
[426333517,1782320806000,-151.0,0.00139919,30]
[426333527,1782320806000,-151.0,0.00139919,30]
[426333541,1782320806000,-151.0,0.00139919,30]
[426333531,1782320806000,-151.0,0.00139919,30]
[426333551,1782320806000,-151.0,0.00139919,30]
[426333550,1782320806000,-151.0,0.00139919,30]
[426333549,1782320806000,-151.0,0.00139919,30]
[426333546,1782320806000,-151.0,0.00139919,30]
[426333547,1782320806000,-151.0,0.00139919,30]
[426333548,1782320806000,-151.0,0.00139919,30]
[426333545,1782320806000,-151.0,0.00139919,30]
[426333544,1782320806000,-151.0,0.00139919,30]
[426333542,1782320806000,-151.0,0.00139919,30]
[426333530,1782320806000,-151.0,0.00139919,30]
[426333540,1782320806000,-151.0,0.00139919,30]
[426333537,1782320806000,-151.0,0.00139919,30]
[426333539,1782320806000,-591.6,0.00139919,120]
[426333538,1782320806000,-151.0,0.00139919,30]
[426333536,1782320806000,-1351.47,0.00139919,120]
[426333533,1782320806000,-151.0,0.00139919,30]
[426333535,1782320806000,-151.0,0.00139919,30]
[426333534,1782320806000,-151.0,0.00139919,30]
[426333532,1782320806000,-151.0,0.00139919,30]
[426333543,1782320806000,-151.0,0.00139919,30]
[426333563,1782320807000,-151.0,0.00139919,30]
[426333564,1782320807000,-151.0,0.00139919,30]
[426333565,1782320807000,-151.0,0.00139919,30]
[426333567,1782320807000,-151.0,0.00139919,30]
[426333570,1782320807000,-151.0,0.00139919,30]
[426333569,1782320807000,-151.0,0.00139919,30]
[426333562,1782320807000,-151.0,0.00139919,30]
[426333566,1782320807000,-151.0,0.00139919,30]
[426333559,1782320807000,-151.0,0.00139919,30]
[426333556,1782320807000,-151.0,0.00139919,30]
[426333561,1782320807000,-151.0,0.00139919,30]
[426333558,1782320807000,-151.0,0.00139919,30]
[426333557,1782320807000,-155.2348035,0.00139919,30]
[426333555,1782320807000,-151.0,0.00139919,30]
[426333554,1782320807000,-151.0,0.00139919,30]
[426333553,1782320807000,-151.0,0.00139919,30]
[426333552,1782320807000,-151.0,0.00139919,30]
[426333568,1782320807000,-151.0,0.00139919,30]
[426333560,1782320807000,-151.0,0.00139919,30]
[426333571,1782320807000,-151.0,0.00139919,30]
[426333572,1782320807000,-151.0,0.00139919,30]
[426333574,1782320807000,-151.0,0.00139919,30]
[426333593,1782320807000,-327.1328947,0.00139919,30]
[426333592,1782320807000,-151.0,0.00139919,30]
[426333591,1782320807000,-151.0,0.00139919,30]
[426333590,1782320807000,-151.0,0.00139919,30]
[426333588,1782320807000,-151.0,0.00139919,30]
[426333589,1782320807000,-151.0,0.00139919,30]
[426333587,1782320807000,-151.0,0.00139919,30]
[426333585,1782320807000,-151.0,0.00139919,30]
[426333584,1782320807000,-384.6147011,0.00139919,30]
[426333586,1782320807000,-327.1328946,0.00139919,30]
[426333582,1782320807000,-151.0,0.00139919,30]
[426333581,1782320807000,-151.0,0.00139919,30]
[426333578,1782320807000,-151.0,0.00139919,30]
[426333580,1782320807000,-151.0,0.00139919,30]
[426333579,1782320807000,-151.0,0.00139919,30]
[426333577,1782320807000,-151.0,0.00139919,30]
[426333576,1782320807000,-151.0,0.00139919,30]
[426333573,1782320807000,-151.0,0.00139919,30]
[426333583,1782320807000,-7719.0,0.00139919,120]
[426333575,1782320807000,-151.0,0.00139919,30]
[426333607,1782320808000,-151.0,0.00139919,30]
[426333608,1782320808000,-151.0,0.00139919,30]
[426333609,1782320808000,-1419.0,0.00139919,120]
[426333613,1782320808000,-1419.0,0.00139919,120]
[426333611,1782320808000,-1419.0,0.00139919,120]
[426333612,1782320808000,-1419.0,0.00139919,120]
[426333606,1782320808000,-151.0,0.00139919,30]
[426333610,1782320808000,-1419.0,0.00139919,120]
[426333605,1782320808000,-151.0,0.00139919,30]
[426333594,1782320808000,-151.0,0.00139919,30]
[426333604,1782320808000,-151.0,0.00139919,30]
[426333602,1782320808000,-151.0,0.00139919,30]
[426333601,1782320808000,-334.905061,0.00139919,30]
[426333600,1782320808000,-151.0,0.00139919,30]
[426333599,1782320808000,-151.0,0.00139919,30]
[426333597,1782320808000,-151.0,0.00139919,30]
[426333595,1782320808000,-330.8932802,0.00139919,30]
[426333596,1782320808000,-151.0,0.00139919,30]
[426333614,1782320808000,-1419.0,0.00139919,120]
[426333603,1782320808000,-151.0,0.00139919,30]
[426333616,1782320808000,-1213.61,0.00139919,120]
[426333598,1782320808000,-151.0,0.00139919,30]
[426333618,1782320808000,-2280.0,0.00139919,120]
[426333638,1782320808000,-186.0,0.00139919,120]
[426333637,1782320808000,-186.0,0.00139919,120]
[426333634,1782320808000,-186.0,0.00139919,120]
[426333636,1782320808000,-186.0,0.00139919,120]
[426333633,1782320808000,-186.0,0.00139919,120]
[426333635,1782320808000,-186.0,0.00139919,120]
[426333632,1782320808000,-186.0,0.00139919,120]
[426333631,1782320808000,-186.0,0.00139919,120]
[426333630,1782320808000,-186.0,0.00139919,120]
[426333628,1782320808000,-196.908,0.00139919,120]
[426333617,1782320808000,-284.849476,0.00139919,60]
[426333626,1782320808000,-1842.0,0.00139919,120]
[426333629,1782320808000,-186.0,0.00139919,120]
[426333619,1782320808000,-2213.0,0.00139919,120]
[426333621,1782320808000,-1842.0,0.00139919,120]
[426333620,1782320808000,-2213.0,0.00139919,120]
[426333615,1782320808000,-1419.0,0.00139919,120]
[426333623,1782320808000,-1842.0,0.00139919,120]
[426333624,1782320808000,-1842.0,0.00139919,120]
[426333627,1782320808000,-1839.0,0.00139919,120]
[426333625,1782320808000,-1842.0,0.00139919,120]
[426333622,1782320808000,-1842.0,0.00139919,120]
[426333640,1782320809000,-186.0,0.00139919,120]
[426333639,1782320809000,-186.0,0.00139919,120]
[426333642,1782320809000,-186.0,0.00139919,120]
[426333641,1782320809000,-186.0,0.00139919,120]
[426333643,1782320809000,-186.0,0.00139919,120]
[426333644,1782320809000,-186.0,0.00139919,120]
[426333645,1782320809000,-186.0,0.00139919,120]
[426333646,1782320809000,-186.0,0.00139919,120]
[426333647,1782320809000,-186.0,0.00139919,120]
[426333648,1782320809000,-186.0,0.00139919,120]
[426333649,1782320809000,-186.0,0.00139919,120]
[426333655,1782320809000,-445.0,0.00139919,120]
[426333657,1782320809000,-445.0,0.00139919,120]
[426333656,1782320809000,-445.0,0.00139919,120]
[426333652,1782320809000,-445.0,0.00139919,120]
[426333653,1782320809000,-445.0,0.00139919,120]
[426333654,1782320809000,-445.0,0.00139919,120]
[426333651,1782320809000,-445.0,0.00139919,120]
[426333650,1782320809000,-186.0,0.00139919,120]
[426333659,1782320810000,505.69580603,0.00139919,120]
[426333660,1782320810000,784.93,0.00139919,120]
[426333661,1782320810000,784.93,0.00139919,120]
[426333663,1782320810000,502.30019444,0.00139919,120]
[426333662,1782320810000,784.93,0.00139919,120]
[426333665,1782320811000,784.93,0.00139919,120]
[426333664,1782320811000,784.93,0.00139919,120]
[426333666,1782320811000,784.93,0.00139919,120]
[426333668,1782320812000,784.93,0.00139919,120]
[426333667,1782320812000,784.93,0.00139919,120]
[426333671,1782320813000,784.93,0.00139919,120]
[426333670,1782320813000,784.93,0.00139919,120]
[426333669,1782320813000,784.93,0.00139919,120]
[426333672,1782320814000,784.93,0.00139919,120]
[426333673,1782320814000,502.26124879,0.00139919,120]
[426333675,1782320814000,784.93,0.00139919,120]
[426333676,1782320814000,784.93,0.00139919,120]
[426333674,1782320814000,784.93,0.00139919,120]
[426333679,1782320815000,784.93,0.00139919,120]
[426333678,1782320815000,784.93,0.00139919,120]
[426333677,1782320815000,784.93,0.00139919,120]
[426333681,1782320816000,784.93,0.00139919,120]
[426333680,1782320816000,784.93,0.00139919,120]
[426333683,1782320816000,784.93,0.00139919,120]
[426333682,1782320816000,784.93,0.00139919,120]
[426333688,1782320817000,582.75,0.00139919,120]
[426333689,1782320817000,588.46814246,0.00139919,120]
[426333687,1782320817000,582.75,0.00139919,120]
[426333686,1782320817000,785.11556641,0.00139919,120]
[426333685,1782320817000,582.75,0.00139919,120]
[426333684,1782320817000,784.93,0.00139919,120]
[426333690,1782320818000,582.75,0.00139919,120]
[426333693,1782320818000,582.75,0.00139919,120]
[426333692,1782320818000,511.69679932,0.00139919,120]
[426333691,1782320818000,582.75,0.00139919,120]
[426333696,1782320819000,582.75,0.00139919,120]
[426333695,1782320819000,582.75,0.00139919,120]
[426333694,1782320819000,582.75,0.00139919,120]
[426333702,1782320820000,6642.24,0.00139919,120]
[426333701,1782320820000,582.75,0.00139919,120]
[426333700,1782320820000,6642.24,0.00139919,120]
[426333699,1782320820000,582.75,0.00139919,120]
[426333698,1782320820000,6642.24,0.00139919,120]
[426333697,1782320820000,582.75,0.00139919,120]
[426333703,1782320821000,6642.24,0.00139919,120]
[426333704,1782320821000,582.75,0.00139919,120]
[426333708,1782320821000,582.75,0.00139919,120]
[426333706,1782320821000,582.75,0.00139919,120]
[426333707,1782320821000,6642.24,0.00139919,120]
[426333705,1782320821000,6642.24,0.00139919,120]
[426333715,1782320822000,6642.24,0.00139919,120]
[426333714,1782320822000,582.75,0.00139919,120]
[426333713,1782320822000,6642.24,0.00139919,120]
[426333712,1782320822000,582.75,0.00139919,120]
[426333711,1782320822000,6642.24,0.00139919,120]
[426333710,1782320822000,582.75,0.00139919,120]
[426333709,1782320822000,6642.24,0.00139919,120]
[426333716,1782320823000,582.75,0.00139919,120]
[426333717,1782320823000,6642.24,0.00139919,120]
[426333718,1782320823000,582.75,0.00139919,120]
[426333720,1782320823000,582.75,0.00139919,120]
[426333721,1782320823000,6642.24,0.00139919,120]
[426333722,1782320823000,582.75,0.00139919,120]
[426333719,1782320823000,6642.24,0.00139919,120]
[426333726,1782320824000,6642.24,0.00139919,120]
[426333725,1782320824000,582.77780029,0.00139919,120]
[426333724,1782320824000,582.75,0.00139919,120]
[426333723,1782320824000,6642.24,0.00139919,120]
[426333731,1782320825000,531.33494234,0.00139919,120]
[426333730,1782320825000,6642.24,0.00139919,120]
[426333729,1782320825000,501.44764001,0.00139919,120]
[426333728,1782320825000,6642.24,0.00139919,120]
[426333727,1782320825000,6642.24,0.00139919,120]
[426333733,1782320826000,6642.24,0.00139919,120]
[426333732,1782320826000,6642.24,0.00139919,120]
[426333735,1782320826000,505.18091141,0.00139919,120]
[426333734,1782320826000,6642.24,0.00139919,120]
[426333736,1782320826000,6642.24,0.00139919,120]
[426333737,1782320827000,291.45932376,0.00139919,120]
[426333739,1782320827000,6642.26026709,0.00139919,120]
[426333738,1782320827000,6642.24,0.00139919,120]
[426333741,1782320829000,500.0,0.00139919,120]
[426333740,1782320829000,500.0,0.00139919,120]
[426333744,1782320830000,500.0,0.00139919,120]
[426333743,1782320830000,500.0,0.00139919,120]
[426333742,1782320830000,500.0,0.00139919,120]
[426333747,1782320831000,500.0,0.00139919,120]
[426333746,1782320831000,500.0,0.00139919,120]
[426333745,1782320831000,500.0,0.00139919,120]
[426333750,1782320832000,500.0,0.00139919,120]
[426333749,1782320832000,500.0,0.00139919,120]
[426333748,1782320832000,500.0,0.00139919,120]
[426333751,1782320833000,500.0,0.00139919,120]
[426333752,1782320833000,500.0,0.00139919,120]
[426333753,1782320833000,500.0,0.00139919,120]
[426333755,1782320834000,506.73873875,0.00139919,120]
[426333754,1782320834000,500.0,0.00139919,120]
[426333758,1782320835000,500.0,0.00139919,120]
[426333757,1782320835000,500.0,0.00139919,120]
[426333756,1782320835000,500.0,0.00139919,120]
[426333760,1782320836000,500.0,0.00139919,120]
[426333759,1782320836000,500.0,0.00139919,120]
[426333762,1782320837000,500.0,0.00139919,120]
[426333761,1782320837000,500.0,0.00139919,120]
[426333763,1782320838000,500.0,0.00139919,120]
[426333765,1782320838000,500.0,0.00139919,120]
[426333764,1782320838000,449.93070193,0.00139919,120]
[426333768,1782320839000,500.0,0.00139919,120]
[426333767,1782320839000,500.0,0.00139919,120]
[426333766,1782320839000,500.0,0.00139919,120]
[426333770,1782320840000,500.0,0.00139919,120]
[426333769,1782320840000,500.0,0.00139919,120]
[426333771,1782320843000,554.83909727,0.00139919,120]
[426333772,1782320849000,528.76,0.00139919,120]
[426333773,1782320850000,500.0,0.00139919,120]
[426333776,1782320850000,528.76,0.00139919,120]
[426333774,1782320850000,528.76,0.00139919,120]
[426333777,1782320850000,528.76,0.00139919,120]
[426333778,1782320850000,528.76,0.00139919,120]
[426333775,1782320850000,507.55507287,0.00139919,120]
[426333781,1782320851000,528.76,0.00139919,120]
[426333780,1782320851000,528.76,0.00139919,120]
[426333779,1782320851000,528.76,0.00139919,120]
[426333784,1782320852000,528.76,0.00139919,120]
[426333783,1782320852000,528.76,0.00139919,120]
[426333782,1782320852000,528.76,0.00139919,120]
[426333788,1782320853000,528.76,0.00139919,120]
[426333787,1782320853000,528.76,0.00139919,120]
[426333786,1782320853000,528.76,0.00139919,120]
[426333785,1782320853000,528.76,0.00139919,120]
[426333789,1782320854000,528.76,0.00139919,120]
[426333790,1782320854000,528.76,0.00139919,120]
[426333792,1782320854000,528.76,0.00139919,120]
[426333791,1782320854000,500.0,0.00139919,120]
[426333793,1782320854000,500.0,0.00139919,120]
[426333799,1782320855000,500.0,0.00139919,120]
[426333798,1782320855000,528.76,0.00139919,120]
[426333797,1782320855000,500.0,0.00139919,120]
[426333796,1782320855000,528.76,0.00139919,120]
[426333795,1782320855000,500.0,0.00139919,120]
[426333794,1782320855000,528.76,0.00139919,120]
[426333801,1782320856000,500.0,0.00139919,120]
[426333802,1782320856000,528.76,0.00139919,120]
[426333800,1782320856000,528.76,0.00139919,120]
[426333804,1782320856000,528.85436447,0.00139919,120]
[426333805,1782320856000,500.0,0.00139919,120]
[426333803,1782320856000,500.0,0.00139919,120]
[426333806,1782320857000,500.0,0.00139919,120]
[426333807,1782320857000,500.0,0.00139919,120]
[426333809,1782320858000,690.57,0.00139919,120]
[426333808,1782320858000,345.78228781,0.00139919,120]
[426333813,1782320859000,690.57,0.00139919,120]
[426333812,1782320859000,690.57,0.00139919,120]
[426333811,1782320859000,690.57,0.00139919,120]
[426333810,1782320859000,690.57,0.00139919,120]
[426333817,1782320860000,690.57,0.00139919,120]
[426333816,1782320860000,690.57,0.00139919,120]
[426333814,1782320860000,690.57,0.00139919,120]
[426333815,1782320860000,514.982287,0.00139919,120]
[426333818,1782320861000,690.57,0.00139919,120]
[426333820,1782320861000,690.57,0.00139919,120]
[426333821,1782320861000,690.57,0.00139919,120]
[426333819,1782320861000,690.57,0.00139919,120]
[426333826,1782320862000,690.57,0.00139919,120]
[426333824,1782320862000,34457.06430862,0.00139919,120]
[426333823,1782320862000,690.57,0.00139919,120]
[426333822,1782320862000,690.57,0.00139919,120]